bitfinex/quotes_ETHUSD_20250602
["timestamp","ask_amount","ask_price","bid_price","bid_amount"]
[1748849336741,7.29878008,2503.8,2503.4,3.15780674]
[1748849336942,7.29878008,2503.8,2503.5,2.39658095]
[1748849338073,7.29878008,2503.8,2503.6,2.39653509]
[1748849338473,0.7926,2503.7,2503.4,2.3966766]
[1748849339170,0.7926,2503.7,2503.5,2.39662082]
[1748849339668,0.7926,2503.7,2503.3,2.39681972]
[1748849339984,8.82865809,2503.8,2503.5,2.39656441]
[1748849340140,8.82865809,2503.8,2503.6,2.39653651]
[1748849340474,8.82865809,2503.8,2503.3,2.39682077]
[1748849340763,8.82865809,2503.8,2503.5,2.39663783]
[1748849341450,8.82865809,2503.8,2503.4,2.39669185]
[1748849342045,7.29878008,2503.5,2503.2,2.39686685]
[1748849342256,7.29878008,2503.5,2503.0,0.8292]
[1748849342576,7.29878008,2503.5,2503.1,2.3969806]
[1748849342944,7.29878008,2503.5,2503.3,2.39682588]
[1748849343150,7.29878008,2503.5,2503.1,2.39699331]
[1748849343348,7.29878008,2503.5,2503.2,2.39691412]
[1748849344482,7.29878008,2503.5,2503.3,2.39678543]
[1748849345978,7.29878008,2503.5,2503.1,2.39700417]
[1748849346184,7.29878008,2503.5,2503.1,2.39699629]
[1748849346385,8.59286167,2503.5,2503.2,2.39692552]
[1748849346574,8.59286167,2503.5,2503.1,2.39700067]
[1748849346883,8.59286167,2503.5,2503.2,2.39686428]
[1748849347082,8.59286167,2503.5,2503.3,2.39680652]
[1748849347248,15.29878008,2503.5,2503.4,2.39674043]
[1748849348587,0.7917,2503.9,2503.7,2.39645324]
[1748849348805,1.091,2504.2,2503.9,2.39625338]
[1748849348943,10.86091063,2504.2,2503.9,2.39625338]
[1748849349492,8.0,2504.1,2503.8,2.39631748]
[1748849349801,7.29878008,2503.9,2503.8,2.39631748]
[1748849350357,7.29878008,2503.9,2503.6,2.39652063]
[1748849350358,7.29878008,2503.9,2503.7,2.39641579]
[1748849350560,0.7981,2503.8,2503.3,2.39676157]
[1748849350847,0.55,2503.7,2503.4,2.3966456]
[1748849351087,7.29878008,2503.5,2503.4,2.3966456]
[1748849351386,7.29878008,2503.5,2503.3,2.39679173]
[1748849351775,7.29878008,2503.5,2503.4,2.39674043]
[1748849352716,15.29878008,2503.8,2503.6,2.39649618]
[1748849353086,8.0,2503.8,2503.7,2.39645324]
[1748849353494,8.0,2503.8,2503.6,2.39650189]
[1748849353781,7.29878008,2503.8,2503.5,2.39657278]
[1748849353982,7.29878008,2503.8,2503.5,2.39657108]
[1748849354399,7.29878008,2503.8,2503.6,2.39654829]
[1748849355692,6.22377801,2503.7,2503.3,2.39676351]
[1748849355913,7.29878008,2503.5,2503.4,2.39668772]
[1748849356340,7.29878008,2503.5,2503.3,2.39682602]
[1748849356509,7.29878008,2503.5,2503.2,2.39688685]
[1748849356709,7.29878008,2503.5,2503.1,2.39695158]
[1748849357018,7.29878008,2503.5,2503.2,2.3969218]
[1748849357839,7.29878008,2503.5,2503.3,2.39681728]
[1748849358143,7.29878008,2503.5,2503.2,2.3968917]
[1748849358926,8.0,2503.4,2502.8,6.5222992]
[1748849359234,7.29878008,2503.2,2503.0,2.39710077]
[1748849359919,15.29878008,2503.4,2503.1,3.22842768]
[1748849360099,15.29878008,2503.4,2503.3,2.39683617]
[1748849360598,15.29878008,2503.4,2503.2,2.39689669]
[1748849360798,15.29878008,2503.4,2503.1,3.22838699]
[1748849360998,15.29878008,2503.4,2503.2,2.39689232]
[1748849361895,15.29878008,2503.4,2503.3,2.39683617]
[1748849362098,7.29878008,2503.4,2503.3,2.39683617]
[1748849363862,7.29878008,2503.7,2503.5,2.39656694]
[1748849364357,8.7749,2503.6,2502.9,2.39721922]
[1748849364520,7.29878008,2503.3,2503.2,2.39691659]
[1748849365572,7.29878008,2503.8,2503.6,2.39654598]
[1748849365716,8.0,2503.7,2503.6,2.39654598]
[1748849365916,7.29878008,2504.2,2503.9,2.39618595]
[1748849366246,1.21943801,2504.1,2503.6,0.8014]
[1748849366445,8.0,2504.1,2503.9,2.39621621]
[1748849366654,8.0,2504.1,2503.6,0.8014]
[1748849366855,8.0,2504.1,2503.9,2.39625021]
[1748849367149,15.29878008,2504.1,2503.9,2.39625021]
[1748849368469,1.304,2504.0,2503.0,0.6276685]
[1748849368687,7.29878008,2503.1,2502.6,0.754]
[1748849368829,1.304,2503.8,2502.6,0.754]
[1748849368830,7.29878008,2502.8,2502.7,2.39741079]
[1748849371877,7.29878008,2503.1,2502.9,2.39718846]
[1748849372055,7.29878008,2503.1,2502.8,2.39725729]
[1748849372056,7.29878008,2503.1,2502.8,2.3972778]
[1748849372366,7.29878008,2503.1,2502.9,2.39721877]
[1748849372921,0.8185,2503.3,2502.8,2.39730444]
[1748849373127,16.11728008,2503.3,2503.0,2.39711239]
[1748849373565,15.29878008,2503.3,2503.0,2.39711239]
[1748849373859,15.29878008,2503.3,2503.1,2.39700485]
[1748849374558,15.29878008,2503.3,2503.1,2.39696509]
[1748849374761,15.29878008,2503.3,2503.2,2.39693192]
[1748849374928,7.29878008,2503.3,2503.2,2.39693192]
[1748849375786,8.0,2503.5,2503.2,2.39693192]
[1748849376133,7.29878008,2503.6,2503.3,2.39679832]
[1748849376396,7.29878008,2503.6,2503.2,2.3969205]
[1748849376576,7.29878008,2503.6,2503.4,2.39665768]
[1748849376742,7.29878008,2503.6,2503.5,2.39664469]
[1748849376949,7.29878008,2503.6,2503.4,2.39667232]
[1748849377149,7.29878008,2503.6,2503.5,2.39664469]
[1748849377429,7.29878008,2503.6,2503.4,2.39669922]
[1748849378172,7.29878008,2503.6,2503.5,2.39664469]
[1748849378476,7.29878008,2503.6,2503.4,2.39669356]
[1748849379998,7.29878008,2503.6,2503.1,7.30601024]
[1748849380140,7.29878008,2503.6,2503.1,0.778]
[1748849380346,7.29878008,2503.3,2503.0,2.39704321]
[1748849380664,7.29878008,2503.3,2502.7,0.7714]
[1748849380966,7.29878008,2503.3,2502.9,2.39715382]
[1748849381170,7.29878008,2503.3,2503.0,2.3971203]
[1748849382076,7.29878008,2503.3,2503.1,2.39701916]
[1748849382277,7.29878008,2503.3,2502.8,4.132]
[1748849382478,7.29878008,2503.3,2503.0,2.39706856]
[1748849383998,7.29878008,2503.3,2503.0,2.39711457]
[1748849384220,7.29878008,2503.3,2502.8,4.132]
[1748849384379,8.0,2503.5,2503.3,2.39683617]
[1748849384704,8.0,2503.5,2503.4,2.39674043]
[1748849385088,8.0,2503.5,2503.3,2.39679896]
[1748849385409,8.0,2503.5,2502.7,3.20675294]
[1748849385708,7.29878008,2503.3,2502.9,4.127]
[1748849386083,7.29878008,2503.3,2503.2,2.39693192]
[1748849386467,7.29878008,2503.3,2502.9,6.52419627]
[1748849386876,7.29878008,2503.3,2503.0,2.39706726]
[1748849387279,7.29878008,2503.3,2502.9,6.52520236]
[1748849387481,7.29878008,2503.3,2502.9,4.128]
[1748849387689,7.29878008,2503.3,2503.0,2.3970731]
[1748849388030,7.29878008,2503.3,2502.9,4.128]
[1748849388031,7.29878008,2503.3,2502.9,6.5251661]
[1748849388177,8.12258008,2503.3,2503.0,2.39711658]
[1748849389278,8.12258008,2503.3,2502.9,2.39717014]
[1748849390426,7.29878008,2503.0,2502.6,4.126]
[1748849390725,7.29878008,2503.0,2502.8,2.3973061]
[1748849391422,7.29878008,2503.0,2502.7,2.39739715]
[1748849392075,7.29878008,2503.0,2502.5,0.7509]
[1748849392402,7.29878008,2503.0,2502.6,6.52244833]
[1748849393508,7.29878008,2503.0,2502.5,3.14845825]
[1748849393694,7.29878008,2503.0,2502.6,6.52145745]
[1748849395026,0.7656,2502.9,2502.6,6.52145745]
[1748849396225,7.29878008,2503.4,2502.7,0.7883]
[1748849396432,8.7833,2503.3,2503.0,2.3970711]
[1748849396577,7.29878008,2503.1,2503.0,2.3970711]
[1748849397187,0.7833,2503.3,2502.9,4.122]
[1748849397395,0.7833,2503.3,2503.1,2.39696986]
[1748849397673,0.7833,2503.3,2503.0,2.39707486]
[1748849398321,7.29878008,2503.1,2503.0,2.39712345]
[1748849399826,1.3426,2503.8,2503.1,0.761]
[1748849400046,8.09138008,2504.0,2503.5,2.39656252]
[1748849400349,15.29878008,2503.8,2503.4,4.122]
[1748849400630,15.29878008,2503.8,2503.6,2.39654339]
[1748849400790,15.29878008,2503.8,2503.5,2.39659818]
[1748849401149,15.29878008,2503.8,2503.4,6.51873997]
[1748849401509,15.29878008,2503.8,2503.1,0.761]
[1748849401830,8.07088008,2503.5,2503.3,2.39677676]
[1748849402037,7.29878008,2503.5,2503.4,2.39674043]
[1748849402238,0.7825,2503.7,2503.1,2.39702768]
[1748849402398,7.29878008,2503.5,2503.1,2.39702768]
[1748849402601,7.29878008,2503.2,2502.9,6.52313847]
[1748849402940,7.29878008,2503.2,2503.0,2.39703373]
[1748849403303,7.29878008,2503.2,2503.1,2.39702768]
[1748849403503,0.7678,2503.4,2503.2,2.39685804]
[1748849404028,15.29878008,2503.5,2503.3,2.39683617]
[1748849404217,7.29878008,2503.5,2502.9,2.39721922]
[1748849404398,7.29878008,2503.5,2503.1,2.39698471]
[1748849405193,9.61243326,2503.5,2503.1,2.39698471]
[1748849405425,9.61243326,2503.5,2503.2,2.39691459]
[1748849405623,9.61243326,2503.5,2503.1,2.39701111]
[1748849405837,7.29878008,2503.5,2503.4,2.39674043]
[1748849406031,0.7652,2503.6,2503.5,2.39664469]
[1748849406240,8.0,2503.7,2503.5,2.39664469]
[1748849406463,8.06708008,2504.1,2503.2,4.13]
[1748849406813,8.06708008,2504.1,2503.5,0.8038]
[1748849407157,10.46369931,2503.6,2503.0,5.5538]
[1748849407299,7.29878008,2503.2,2503.0,4.75]
[1748849407817,7.29878008,2503.2,2503.0,7.14711409]
[1748849408007,7.29878008,2503.2,2503.0,4.75]
[1748849408318,7.29878008,2503.1,2502.8,2.39724381]
[1748849408518,7.29878008,2503.1,2502.9,2.39721554]
[1748849409074,7.29878008,2503.1,2502.1,0.01]
[1748849409075,9.54957801,2503.0,2502.1,0.01]
[1748849409366,16.11848008,2503.0,2502.8,2.39723087]
[1748849409524,16.11848008,2503.0,2502.8,2.397315]
[1748849410439,16.11848008,2503.0,2502.4,2.39766896]
[1748849410440,17.73032809,2503.0,2502.4,2.39766896]
[1748849410748,17.73032809,2503.0,2502.1,2.4079504]
[1748849410749,7.29878008,2502.7,2502.1,2.40791322]
[1748849410954,7.29878008,2502.7,2502.3,2.39776991]
[1748849411268,7.29878008,2502.4,2502.1,0.01]
[1748849411559,7.29878008,2502.4,2502.1,2.40798413]
[1748849411955,7.29878008,2502.4,2502.2,2.3978829]
[1748849412333,7.29878008,2502.4,2502.1,2.4079549]
[1748849412672,8.8311,2502.6,2502.1,2.4079549]
[1748849412673,8.8311,2502.6,2502.1,0.01]
[1748849412830,16.12988008,2502.6,2502.2,2.39788985]
[1748849413364,0.7829,2502.5,2502.2,2.39788985]
[1748849413666,8.0,2502.8,2502.1,0.01]
[1748849413868,8.0,2502.8,2502.4,2.39761684]
[1748849414077,8.0,2502.8,2502.1,2.4079516]
[1748849414251,7.29878008,2503.2,2502.9,2.39714743]
[1748849414437,8.0,2503.1,2502.7,2.39735176]
[1748849414638,8.0,2503.1,2502.6,4.926]
[1748849415043,7.29878008,2503.2,2502.6,4.147]
[1748849415250,7.29878008,2503.2,2502.6,6.54449645]
[1748849415445,9.6957281,2503.2,2502.6,6.54446732]
[1748849415647,8.0,2503.1,2502.7,2.39740931]
[1748849415868,0.55,2503.0,2502.7,2.39740931]
[1748849416072,7.29878008,2502.9,2502.6,2.39745694]
[1748849416273,7.29878008,2502.9,2502.6,2.39744885]
[1748849416654,7.29878008,2502.9,2502.4,2.39760553]
[1748849416860,7.29878008,2502.9,2502.4,6.55060553]
[1748849417042,7.29878008,2502.9,2502.5,2.39760239]
[1748849417246,7.29878008,2502.6,2502.1,3.23536283]
[1748849417558,7.29878008,2502.6,2502.3,2.39779402]
[1748849418133,7.29878008,2502.6,2502.1,4.9894]
[1748849418458,7.29878008,2502.6,2502.1,0.8374]
[1748849418666,0.7587,2502.5,2502.1,2.40796425]
[1748849419054,0.7587,2502.5,2502.3,2.39773533]
[1748849419567,8.7587,2502.5,2502.1,0.01]
[1748849419776,10.60420263,2502.5,2502.1,0.01]
[1748849420283,10.60420263,2502.5,2502.1,2.40798254]
[1748849420678,7.29878008,2502.3,2502.1,0.01]
[1748849423292,3.48134144,2502.8,2502.1,0.01]
[1748849423293,0.8039,2502.8,2502.1,0.01]
[1748849423593,8.0,2502.8,2502.7,2.39741079]
[1748849424321,7.29878008,2502.9,2502.8,2.397315]
[1748849424466,0.826,2503.5,2502.7,4.153]
[1748849424665,0.826,2503.5,2503.0,2.39706051]
[1748849424666,7.29878008,2503.4,2503.0,2.39706051]
[1748849424908,7.29878008,2503.4,2503.0,2.39709091]
[1748849425118,8.0,2503.3,2503.0,2.39709091]
[1748849425601,7.29878008,2503.3,2503.0,2.39706143]
[1748849425760,7.29878008,2503.3,2503.1,2.39699427]
[1748849426100,7.29878008,2503.3,2502.9,2.39715418]
[1748849426291,7.29878008,2503.0,2502.7,4.153]
[1748849426595,7.29878008,2503.0,2502.8,2.39730397]
[1748849426813,7.29878008,2503.0,2502.9,2.39721922]
[1748849426966,0.826,2503.5,2502.7,4.153]
[1748849427164,8.08038008,2503.7,2502.8,0.7632]
[1748849427368,8.08038008,2503.7,2503.4,2.39667955]
[1748849427616,8.0,2503.6,2503.3,2.3967958]
[1748849427899,8.0,2503.6,2503.1,6.55001303]
[1748849427900,8.0,2503.6,2503.1,6.55000684]
[1748849430207,8.0,2503.0,2502.8,2.39731073]
[1748849430366,8.0,2503.0,2502.7,2.39735532]
[1748849431000,8.0,2503.0,2502.6,2.39750659]
[1748849431185,8.0,2503.0,2502.7,2.39740014]
[1748849431924,8.0,2503.0,2502.8,2.3972848]
[1748849432373,8.0,2503.0,2502.7,2.39736993]
[1748849433505,8.0,2503.0,2502.8,2.39727945]
[1748849433705,8.0,2503.0,2502.7,2.39737058]
[1748849434001,8.0,2503.0,2502.8,2.39728535]
[1748849434399,8.0,2503.0,2502.7,2.39736521]
[1748849435469,8.0,2503.0,2502.8,2.39728172]
[1748849436483,8.55,2502.8,2502.0,3.18454788]
[1748849436687,7.29878008,2502.5,2502.2,2.3978361]
[1748849437093,7.29878008,2502.5,2502.3,2.39777867]
[1748849437292,7.84878008,2502.8,2502.4,2.3976982]
[1748849437471,15.84878008,2502.8,2502.4,2.3976982]
[1748849437836,15.84878008,2502.8,2502.5,2.39758404]
[1748849438175,8.0,2502.8,2502.7,2.39741079]
[1748849438497,8.0,2502.8,2502.5,2.39756723]
[1748849438702,15.29878008,2502.8,2502.5,2.39756723]
[1748849439129,15.29878008,2502.8,2502.6,2.3975024]
[1748849439612,15.29878008,2502.8,2502.7,2.39741079]
[1748849439788,0.767,2502.9,2502.6,2.3974954]
[1748849439988,8.0,2503.0,2502.8,2.39726346]
[1748849440396,8.05848008,2503.1,2502.9,2.39721922]
[1748849440594,8.05848008,2503.1,2502.8,2.39724242]
[1748849443407,8.05848008,2503.1,2502.6,2.39747438]
[1748849444034,8.05848008,2503.1,2502.7,2.39741079]
[1748849444832,8.05848008,2503.1,2502.8,2.39730732]
[1748849446031,12.77140195,2503.1,2502.4,0.8184]
[1748849446235,10.37431268,2503.1,2502.4,3.21608661]
[1748849446533,8.05848008,2503.1,2502.8,2.39728375]
[1748849446729,0.7597,2503.1,2502.8,2.39728375]
[1748849446908,8.05848008,2503.1,2502.8,2.39728375]
[1748849447630,8.05848008,2503.1,2502.8,2.39726025]
[1748849447834,8.05848008,2503.1,2502.7,2.39736493]
[1748849449694,8.05848008,2503.1,2502.7,2.39734132]
[1748849450129,8.05848008,2503.1,2502.6,2.39745911]
[1748849450332,10.37372236,2503.1,2502.6,2.39745042]
[1748849450844,12.77075033,2503.1,2502.6,2.39745042]
[1748849451334,3.07494228,2503.1,2502.7,2.39740302]
[1748849451541,0.7597,2503.1,2502.5,4.142]
[1748849451716,0.7597,2503.1,2502.8,2.39725377]
[1748849455354,3.51145199,2503.0,2502.8,2.39725377]
[1748849456060,3.51145199,2503.0,2502.7,2.39736713]
[1748849456220,3.51145199,2502.8,2502.7,2.39736713]
[1748849458756,3.51145199,2503.0,2502.8,2.39728313]
[1748849459122,3.51145199,2503.0,2502.7,2.39734137]
[1748849459547,3.51145199,2503.0,2502.8,2.39729935]
[1748849459749,0.811,2503.4,2502.9,0.03995168]
[1748849460056,3.51145199,2503.7,2503.5,2.39664469]
[1748849460258,0.811,2503.8,2503.6,2.39654896]
[1748849460473,1.26121167,2504.4,2503.8,0.7592]
[1748849460650,0.7824,2504.4,2503.8,0.7592]
[1748849460820,3.51145199,2504.1,2503.9,2.39622243]
[1748849461152,3.51145199,2504.1,2503.7,2.39638041]
[1748849461357,8.0,2504.0,2503.7,2.39638041]
[1748849461524,8.0,2504.0,2503.6,2.39650512]
[1748849461724,7.29887169,2503.8,2503.4,2.39668477]
[1748849461924,7.29887169,2503.8,2503.2,4.9421]
[1748849462123,7.29887169,2503.8,2503.5,2.39663534]
[1748849462932,7.29887169,2503.8,2503.7,2.39645324]
[1748849463138,7.29887169,2503.8,2503.6,2.39651218]
[1748849464326,1.33,2503.9,2503.6,2.39651218]
[1748849464528,2.39601593,2504.2,2503.7,2.39639935]
[1748849464529,8.8208,2504.2,2503.7,2.39639935]
[1748849464724,8.8208,2504.2,2503.8,2.3963522]
[1748849465353,8.8208,2504.2,2503.7,2.39644177]
[1748849465749,8.8208,2504.2,2503.5,2.39657848]
[1748849465750,7.29887169,2504.0,2503.5,2.39657848]
[1748849465973,9.69509714,2504.0,2503.4,2.3966712]
[1748849466169,8.832,2503.9,2503.5,2.39662394]
[1748849466376,0.7608,2504.1,2503.7,2.39639435]
[1748849466758,0.7608,2504.1,2503.8,2.3963535]
[1748849467161,0.7608,2504.1,2503.7,2.39640792]
[1748849467676,7.29887169,2503.9,2503.6,2.39647124]
[1748849467983,7.29887169,2503.9,2503.7,2.39644427]
[1748849468353,0.8026,2504.3,2503.9,2.39617743]
[1748849468590,8.8026,2504.3,2503.9,2.39617743]
[1748849469555,11.19850188,2504.3,2503.8,2.39635587]
[1748849469748,8.8026,2504.3,2503.8,2.39635587]
[1748849470382,8.8026,2504.3,2503.9,2.39621535]
[1748849470597,0.8026,2504.3,2504.0,2.39609582]
[1748849470795,0.7514,2504.7,2503.7,4.142]
[1748849470958,0.7514,2504.7,2504.2,2.39591292]
[1748849471288,8.0,2504.4,2504.2,2.39591292]
[1748849471489,8.0,2504.4,2504.0,2.39615356]
[1748849471790,8.0,2504.4,2504.1,2.39607044]
[1748849472555,8.0,2504.4,2504.2,2.3959694]
[1748849473199,8.0,2504.4,2504.3,2.39587908]
[1748849473507,15.29887169,2504.5,2504.3,2.39584284]
[1748849473906,2.95533759,2504.9,2504.2,0.7574]
[1748849473907,0.7722,2504.9,2504.2,0.7574]
[1748849474093,0.7722,2504.9,2504.4,2.39574112]
[1748849474296,7.29887169,2504.7,2504.2,2.39592623]
[1748849474469,7.29887169,2504.4,2504.1,2.3960022]
[1748849475005,7.29887169,2504.4,2504.3,2.39587908]
[1748849475407,0.7622,2504.6,2504.3,2.39587908]
[1748849475608,0.7622,2504.6,2504.4,2.39577703]
[1748849476208,0.7622,2504.6,2504.3,2.39583426]
[1748849476408,7.29887169,2504.5,2504.2,2.39595711]
[1748849477515,7.29887169,2504.5,2504.0,6.53315089]
[1748849477516,7.29887169,2504.5,2504.3,2.39587745]
[1748849478505,7.29887169,2504.5,2504.2,2.3959557]
[1748849479106,8.90497886,2504.5,2503.6,5.5659]
[1748849479415,7.29887169,2504.2,2503.6,0.8159]
[1748849479734,7.29887169,2504.2,2503.9,2.39623128]
[1748849479938,7.29887169,2504.2,2503.4,0.7846]
[1748849479939,8.0,2504.1,2503.4,0.7846]
[1748849480217,0.7775,2504.0,2503.6,2.39648374]
[1748849480413,7.29887169,2503.9,2503.7,2.39645202]
[1748849480920,7.29887169,2503.9,2503.7,2.39644463]
[1748849481416,7.29887169,2503.9,2503.5,2.39661757]
[1748849481620,7.29887169,2503.9,2503.7,2.39641779]
[1748849483397,7.29887169,2503.9,2503.5,2.39664469]
[1748849483615,7.29887169,2503.9,2503.7,2.39640549]
[1748849484482,7.29887169,2503.9,2503.8,2.39635753]
[1748849485323,3.50921627,2503.9,2503.8,2.39635753]
[1748849486511,0.8211,2504.3,2503.5,2.39662511]
[1748849486700,8.0,2504.2,2504.0,2.39611213]
[1748849486998,3.50921627,2504.1,2504.0,2.39616613]
[1748849488624,3.50921627,2504.1,2503.9,2.39621693]
[1748849490113,3.50921627,2504.1,2503.8,2.39630842]
[1748849492229,3.50921627,2504.1,2503.9,2.39624196]
[1748849492399,11.50921627,2504.1,2504.0,2.39616613]
[1748849493453,2.87330062,2504.7,2504.0,2.39616613]
[1748849493454,0.48778198,2504.9,2504.5,2.39568776]
[1748849493604,4.31151627,2504.8,2504.5,2.39568776]
[1748849493805,8.0,2504.7,2504.5,2.39568776]
[1748849494138,3.50921627,2504.6,2504.5,2.39568776]
[1748849494333,11.50921627,2504.6,2504.5,2.39568776]
[1748849495127,11.50921627,2504.6,2504.4,2.39574169]
[1748849495486,8.0,2504.6,2504.5,2.39568776]
[1748849495902,8.0,2504.6,2504.4,2.3957387]
[1748849496185,8.0,2504.6,2504.5,2.39568776]
[1748849496388,8.0,2504.6,2504.4,2.39577607]
[1748849496389,8.0,2504.6,2504.4,2.39574506]
[1748849496589,3.50921627,2504.5,2504.4,2.39578342]
[1748849496789,8.0,2504.6,2504.5,2.39568776]
[1748849497727,8.0,2504.6,2504.4,2.39573582]
[1748849498629,8.0,2504.6,2504.3,3.15637474]
[1748849498831,8.0,2504.6,2504.2,4.124]
[1748849498832,3.50921627,2504.5,2504.4,2.3957227]
[1748849499002,3.50921627,2504.5,2504.3,2.39583426]
[1748849499207,3.50921627,2504.5,2504.4,2.39578342]
[1748849499418,2.40530935,2504.9,2504.8,2.39540083]
[1748849499419,0.01,2504.9,2504.8,2.39540083]
[1748849499605,0.01,2504.9,2504.8,7.28670083]
[1748849499816,0.01,2504.9,2504.8,7.32661254]
[1748849500022,0.01,2504.9,2504.8,7.28670083]
[1748849503159,0.01,2504.9,2504.8,7.83670083]
[1748849503357,0.01,2504.9,2504.8,16.39270083]
[1748849504056,0.01,2504.9,2504.8,3.15770083]
[1748849504269,0.01,2504.9,2504.8,8.39270083]
[1748849505540,0.01,2504.9,2504.8,8.38970083]
[1748849507464,0.01,2504.9,2504.8,8.38770083]
[1748849507841,0.01,2504.9,2504.8,3.15770083]
[1748849508058,0.01,2504.9,2504.8,2.39540083]
[1748849511255,0.01,2504.9,2504.7,2.39547206]
[1748849511569,0.7545,2504.5,2503.7,0.97401911]
[1748849511767,0.04126715,2504.4,2503.8,2.39630228]
[1748849511970,9.06949965,2504.5,2503.8,2.39630228]
[1748849512173,9.06949965,2504.5,2504.0,2.39616322]
[1748849512332,1.06949965,2504.5,2504.1,2.39599968]
[1748849512532,1.06949965,2504.5,2504.0,2.3961261]
[1748849512737,0.90694997,2504.4,2504.0,2.3961261]
[1748849514233,8.82316715,2504.3,2503.6,4.144]
[1748849514538,8.7819,2504.3,2503.8,2.39628519]
[1748849514766,10.75072153,2504.3,2503.8,2.39628519]
[1748849515280,10.75072153,2504.3,2503.9,2.39623984]
[1748849515427,10.75072153,2504.3,2503.8,2.39632588]
[1748849515628,10.75072153,2504.3,2503.9,2.39618796]
[1748849517348,10.75072153,2504.3,2503.8,2.39627754]
[1748849517554,10.75072153,2504.3,2503.6,4.144]
[1748849517735,0.7819,2504.3,2504.0,2.39611149]
[1748849518061,0.7819,2504.3,2503.9,2.39622503]
[1748849518568,8.7819,2504.3,2503.7,2.39642198]
[1748849518770,2.39599368,2504.2,2503.7,2.39642749]
[1748849518973,0.31778937,2504.1,2503.7,6.53542749]
[1748849519178,8.7819,2504.3,2503.9,2.39625817]
[1748849520343,8.7819,2504.3,2503.9,2.39621724]
[1748849520539,11.17778136,2504.3,2503.6,2.39653071]
[1748849520844,11.17778136,2504.3,2503.7,6.53438403]
[1748849521047,1.93732945,2504.2,2503.8,2.3963338]
[1748849521871,1.93732945,2504.2,2503.9,2.3962589]
[1748849522072,1.93732945,2504.2,2504.0,2.39611352]
[1748849522272,2.39550903,2504.7,2504.1,2.39600569]
[1748849522472,0.7733,2504.6,2504.1,2.39600569]
[1748849522701,0.55,2504.5,2504.1,2.39600569]
[1748849523365,0.55,2504.5,2504.2,2.39597107]
[1748849523766,0.7733,2504.6,2504.0,6.53314438]
[1748849523767,0.7733,2504.6,2504.0,4.137]
[1748849523961,0.7748,2504.8,2504.4,2.39571377]
[1748849524267,0.7748,2504.8,2504.3,2.39583368]
[1748849524467,9.84686794,2504.7,2504.3,2.39583368]
[1748849524702,9.84686794,2504.7,2504.4,2.39577876]
[1748849524903,0.7748,2504.8,2504.6,2.39553075]
[1748849526100,0.7748,2504.8,2504.7,2.39549646]
[1748849526303,0.7748,2504.8,2504.6,2.3955494]
[1748849528083,0.55,2504.7,2503.9,5.561]
[1748849528289,0.55,2504.7,2504.1,2.3960459]
[1748849528290,2.94549657,2504.7,2504.1,2.3960459]
[1748849528499,0.7801,2504.5,2504.1,2.3960459]
[1748849530288,0.7801,2504.5,2504.0,4.144]
[1748849530289,0.7801,2504.5,2504.2,2.3959316]
[1748849531094,0.7801,2504.5,2504.1,2.39602345]
[1748849531495,0.7801,2504.5,2504.2,2.39594582]
[1748849532010,0.7801,2504.5,2504.3,2.39587154]
[1748849532215,1.83031297,2504.5,2504.3,2.39587154]
[1748849533392,0.7801,2504.5,2504.4,2.39578342]
[1748849533916,0.819,2504.7,2504.6,2.39558536]
[1748849534474,0.7981,2504.9,2504.2,2.39597476]
[1748849534679,0.7981,2504.9,2504.8,2.39540083]
[1748849534680,0.01,2504.9,2504.8,2.39540083]
[1748849534930,0.01,2504.9,2504.8,6.53540083]
[1748849542724,0.01,2504.9,2504.7,2.39540209]
[1748849542896,0.8407,2504.9,2504.7,2.39540209]
[1748849543102,0.8407,2504.9,2504.6,2.39555436]
[1748849544291,0.8407,2504.9,2504.7,2.39547108]
[1748849544723,0.8407,2504.9,2504.8,2.39540083]
[1748849547201,0.01,2504.9,2504.8,2.39540083]
[1748849548098,0.01,2504.9,2504.8,3.22340083]
[1748849558125,0.01,2504.9,2504.8,7.97340083]
[1748849558709,0.01,2504.9,2504.8,13.18040083]
[1748849562929,0.01,2504.9,2504.8,13.17840083]
[1748849565331,0.01,2504.9,2504.8,9.06040083]
[1748849565639,0.01,2504.9,2504.8,12.34840083]
[1748849565847,0.01,2504.9,2504.8,11.26140083]
[1748849568179,0.01,2504.9,2504.8,6.51140083]
[1748849569360,0.01,2504.9,2504.8,6.50740083]
[1748849569758,0.01,2504.9,2504.8,2.39540083]
[1748849569962,0.01,2504.9,2504.8,6.50740083]
[1748849570445,0.01,2504.9,2504.8,2.39540083]
[1748849570650,0.01,2504.9,2504.8,6.50740083]
[1748849570893,0.7602,2504.9,2504.6,3.48252689]
[1748849571174,0.82066715,2504.8,2504.4,2.39574085]
[1748849571333,1.66246672,2504.8,2504.3,2.39587908]
[1748849571540,0.7794,2504.8,2504.7,2.39549646]
[1748849572109,0.7794,2504.8,2504.6,2.39554622]
[1748849572295,0.7794,2504.8,2504.4,6.51276602]
[1748849572454,0.7794,2504.8,2504.5,2.39568776]
[1748849573053,0.7794,2504.8,2504.4,2.39577361]
[1748849573255,0.7794,2504.8,2504.5,2.39567854]
[1748849573565,1.65834,2504.8,2504.4,2.39574529]
[1748849573774,1.65834,2504.8,2504.5,2.39567133]
[1748849574167,1.65834,2504.8,2504.4,2.3957537]
[1748849574573,0.7794,2504.8,2504.4,2.3957537]
[1748849575897,0.7794,2504.8,2504.5,2.39568654]
[1748849576457,0.7794,2504.8,2504.6,2.39557948]
[1748849577897,0.01,2504.9,2504.8,2.39540083]
[1748849579108,0.01,2504.9,2504.8,6.51340083]
[1748849579488,0.01,2504.9,2504.8,8.37040083]
[1748849580870,0.01,2504.9,2504.8,8.36540083]
[1748849584022,0.01,2505.9,2505.8,2.39444488]
[1748849584182,0.01,2505.9,2505.8,6.51044488]
[1748849593493,0.01,2505.9,2505.8,7.30284488]
[1748849594538,0.01,2505.9,2505.8,7.58844488]
[1748849595901,0.01,2505.9,2505.8,2.39444488]
[1748849596102,0.01,2505.9,2505.2,0.81]
[1748849596322,0.8318,2505.8,2505.7,2.39454044]
[1748849597154,0.8318,2505.8,2505.7,6.50654044]
[1748849598726,0.8318,2505.8,2505.0,0.8137]
[1748849598927,0.8318,2505.8,2505.5,2.39464812]
[1748849599129,0.8318,2505.8,2505.1,7.6148207]
[1748849599332,0.8318,2505.8,2505.7,2.39454044]
[1748849599533,0.01,2505.9,2505.8,2.39444488]
[1748849602255,0.01,2505.9,2505.8,6.50644488]